[Event "Late-Titled-Tuesday-Blitz-August-29-2023"]
[Site "Chess.com"]
[Date "2023.08.29"]
[Round "3"]
[White "DanielNaroditsky"]
[Black "GM_shahin"]
[Result "1/2-1/2"]
[WhiteElo "3100"]
[BlackElo "2716"]
[TimeControl "180+1"]
[EndTime "14:30:48 PDT"]
[Termination "Game drawn - insufficient material"]

1. e4 {[%clk 0:02:53.8]} 1... e5 {[%clk 0:02:58]} 2. Nf3 {[%clk 0:02:54.1]} 2...
Nc6 {[%clk 0:02:58.7]} 3. Nc3 {[%clk 0:02:55]} 3... Nf6 {[%clk 0:02:58.4]} 4. d4
{[%clk 0:02:55.7]} 4... exd4 {[%clk 0:02:59.3]} 5. Nd5 {[%clk 0:02:56.4]} 5...
Nb4 {[%clk 0:02:56.5]} 6. Nxf6+ {[%clk 0:02:56.6]} 6... Qxf6 {[%clk 0:02:56.1]}
7. Bc4 {[%clk 0:02:57.5]} 7... Bc5 {[%clk 0:02:38.2]} 8. O-O {[%clk 0:02:57.5]}
8... O-O {[%clk 0:02:38.3]} 9. e5 {[%clk 0:02:58]} 9... Qg6 {[%clk 0:02:37.7]}
10. a3 {[%clk 0:02:58.6]} 10... Nc6 {[%clk 0:02:32.3]} 11. b4 {[%clk 0:02:53.8]}
11... Bb6 {[%clk 0:02:30.5]} 12. Bd3 {[%clk 0:02:50.5]} 12... Qh5 {[%clk
0:02:19.2]} 13. Bf4 {[%clk 0:02:50.6]} 13... d6 {[%clk 0:02:08.9]} 14. exd6
{[%clk 0:02:48.7]} 14... cxd6 {[%clk 0:02:09.1]} 15. Bxd6 {[%clk 0:02:45.9]}
15... Rd8 {[%clk 0:02:08.1]} 16. Re1 {[%clk 0:02:41]} 16... Bg4 {[%clk
0:01:58.1]} 17. Bg3 {[%clk 0:02:41.2]} 17... Re8 {[%clk 0:01:51]} 18. Be4 {[%clk
0:02:41.2]} 18... Rad8 {[%clk 0:01:47.9]} 19. Qd3 {[%clk 0:02:39]} 19... h6
{[%clk 0:00:51.6]} 20. h3 {[%clk 0:02:38.8]} 20... Bc8 {[%clk 0:00:51.4]} 21.
Re2 {[%clk 0:02:25.2]} 21... Re6 {[%clk 0:00:51.1]} 22. Rae1 {[%clk 0:02:21.8]}
22... Rde8 {[%clk 0:00:51.2]} 23. b5 {[%clk 0:02:19.6]} 23... Na5 {[%clk
0:00:50.4]} 24. Nxd4 {[%clk 0:02:06.8]} 24... Bxd4 {[%clk 0:00:45.3]} 25. Qxd4
{[%clk 0:02:07.7]} 25... Qxb5 {[%clk 0:00:44.7]} 26. Bd3 {[%clk 0:01:42.8]}
26... Qb6 {[%clk 0:00:35.2]} 27. Rxe6 {[%clk 0:01:42.4]} 27... Bxe6 {[%clk
0:00:31.7]} 28. Qxb6 {[%clk 0:01:24.8]} 28... axb6 {[%clk 0:00:30.3]} 29. Bc7
{[%clk 0:01:24.4]} 29... Rc8 {[%clk 0:00:28.6]} 30. Bxb6 {[%clk 0:01:21]} 30...
Nc4 {[%clk 0:00:29.2]} 31. Bd4 {[%clk 0:01:16.3]} 31... Nxa3 {[%clk 0:00:28.6]}
32. c3 {[%clk 0:01:17.1]} 32... Nc4 {[%clk 0:00:24.5]} 33. Rb1 {[%clk
0:01:16.1]} 33... Rc7 {[%clk 0:00:21.8]} 34. Ra1 {[%clk 0:01:13.7]} 34... f6
{[%clk 0:00:16.6]} 35. Bg6 {[%clk 0:01:09.7]} 35... Kf8 {[%clk 0:00:17]} 36. Be4
{[%clk 0:00:56.2]} 36... Kf7 {[%clk 0:00:16.7]} 37. Ra7 {[%clk 0:00:55.4]} 37...
Nd6 {[%clk 0:00:16.7]} 38. Bf3 {[%clk 0:00:55.8]} 38... Bc8 {[%clk 0:00:11.7]}
39. Bd5+ {[%clk 0:00:51.3]} 39... Be6 {[%clk 0:00:10]} 40. Bf3 {[%clk
0:00:51.5]} 40... Bc8 {[%clk 0:00:08.8]} 41. Ra8 {[%clk 0:00:51.9]} 41... Nb5
{[%clk 0:00:07.2]} 42. g4 {[%clk 0:00:27.2]} 42... Nxc3 {[%clk 0:00:06.8]} 43.
Bb6 {[%clk 0:00:26.4]} 43... Rc4 {[%clk 0:00:06]} 44. Kg2 {[%clk 0:00:22.4]}
44... Be6 {[%clk 0:00:06.3]} 45. Rd8 {[%clk 0:00:16.4]} 45... Rb4 {[%clk
0:00:04.7]} 46. Bc5 {[%clk 0:00:15.2]} 46... Rb5 {[%clk 0:00:04.8]} 47. Rf8+
{[%clk 0:00:10.8]} 47... Kg6 {[%clk 0:00:04.7]} 48. Bd4 {[%clk 0:00:11.7]} 48...
Rb3 {[%clk 0:00:04.1]} 49. Rd8 {[%clk 0:00:08.4]} 49... Nb5 {[%clk 0:00:03.9]}
50. Be3 {[%clk 0:00:06.8]} 50... f5 {[%clk 0:00:03.1]} 51. Kg3 {[%clk
0:00:05.1]} 51... fxg4 {[%clk 0:00:03.3]} 52. hxg4 {[%clk 0:00:06]} 52... Kf7
{[%clk 0:00:03.8]} 53. Bxb7 {[%clk 0:00:05.3]} 53... Nc3 {[%clk 0:00:03.3]} 54.
Bf3 {[%clk 0:00:05]} 54... Rb4 {[%clk 0:00:02.7]} 55. g5 {[%clk 0:00:03]} 55...
Ne4+ {[%clk 0:00:03.2]} 56. Bxe4 {[%clk 0:00:02.7]} 56... Rxe4 {[%clk 0:00:03]}
57. gxh6 {[%clk 0:00:03.3]} 57... gxh6 {[%clk 0:00:03.9]} 58. Bxh6 {[%clk
0:00:04.2]} 58... Rg4+ {[%clk 0:00:04.5]} 59. Kf3 {[%clk 0:00:04.9]} 59... Rg6
{[%clk 0:00:05.2]} 60. Bf4 {[%clk 0:00:04.5]} 60... Rf6 {[%clk 0:00:05.8]} 61.
Ke3 {[%clk 0:00:05.2]} 61... Rf5 {[%clk 0:00:06.3]} 62. Rb8 {[%clk 0:00:03.9]}
62... Rd5 {[%clk 0:00:06.9]} 63. f3 {[%clk 0:00:03.5]} 63... Rd7 {[%clk
0:00:07.8]} 64. Be5 {[%clk 0:00:03.5]} 64... Bf5 {[%clk 0:00:08.2]} 65. Kf4
{[%clk 0:00:04]} 65... Be6 {[%clk 0:00:08.4]} 66. Rh8 {[%clk 0:00:04.8]} 66...
Kg6 {[%clk 0:00:08.2]} 67. Rh2 {[%clk 0:00:04]} 67... Rf7+ {[%clk 0:00:08.8]}
68. Ke3 {[%clk 0:00:04]} 68... Kf5 {[%clk 0:00:08.6]} 69. Bf4 {[%clk 0:00:03]}
69... Re7 {[%clk 0:00:06.3]} 70. Rh5+ {[%clk 0:00:03]} 70... Kg6 {[%clk
0:00:06.9]} 71. Rh6+ {[%clk 0:00:02.8]} 71... Kf7 {[%clk 0:00:06.8]} 72. Bg5
{[%clk 0:00:03]} 72... Re8 {[%clk 0:00:07.1]} 73. Kf4 {[%clk 0:00:03.5]} 73...
Bc4 {[%clk 0:00:05.6]} 74. Rc6 {[%clk 0:00:03.5]} 74... Bd5 {[%clk 0:00:05.4]}
75. Rd6 {[%clk 0:00:04.2]} 75... Be6 {[%clk 0:00:05.5]} 76. Kg3 {[%clk
0:00:03.4]} 76... Rc8 {[%clk 0:00:05.8]} 77. Rb6 {[%clk 0:00:02.8]} 77... Rc4
{[%clk 0:00:06.2]} 78. f4 {[%clk 0:00:03.1]} 78... Rc3+ {[%clk 0:00:06.1]} 79.
Kf2 {[%clk 0:00:03.9]} 79... Rd3 {[%clk 0:00:05]} 80. f5 {[%clk 0:00:03.9]}
80... Bd5 {[%clk 0:00:03.4]} 81. Rd6 {[%clk 0:00:03.4]} 81... Rf3+ {[%clk
0:00:03.6]} 82. Ke2 {[%clk 0:00:03]} 82... Rxf5 {[%clk 0:00:04.5]} 83. Bh4
{[%clk 0:00:03.4]} 83... Bc4+ {[%clk 0:00:03.3]} 84. Ke3 {[%clk 0:00:03.8]}
84... Be6 {[%clk 0:00:04.2]} 85. Ke4 {[%clk 0:00:04.1]} 85... Rd5 {[%clk
0:00:04.2]} 86. Rb6 {[%clk 0:00:03.5]} 86... Rh5 {[%clk 0:00:04.1]} 87. Bg3
{[%clk 0:00:03.8]} 87... Rd5 {[%clk 0:00:03.9]} 88. Be5 {[%clk 0:00:04.2]} 88...
Rd7 {[%clk 0:00:03.9]} 89. Kf4 {[%clk 0:00:03.8]} 89... Ra7 {[%clk 0:00:03.6]}
90. Rb4 {[%clk 0:00:03.7]} 90... Rd7 {[%clk 0:00:03.1]} 91. Ra4 {[%clk
0:00:03.4]} 91... Rb7 {[%clk 0:00:02.7]} 92. Kg5 {[%clk 0:00:02.9]} 92... Rd7
{[%clk 0:00:03.3]} 93. Rf4+ {[%clk 0:00:03.3]} 93... Ke8 {[%clk 0:00:03.9]} 94.
Rh4 {[%clk 0:00:03.2]} 94... Rf7 {[%clk 0:00:03.9]} 95. Bf6 {[%clk 0:00:04]}
95... Kd7 {[%clk 0:00:04.8]} 96. Re4 {[%clk 0:00:03.9]} 96... Bd5 {[%clk
0:00:04.8]} 97. Re3 {[%clk 0:00:03.9]} 97... Kc6 {[%clk 0:00:05.7]} 98. Kg6
{[%clk 0:00:04.3]} 98... Rd7 {[%clk 0:00:06.3]} 99. Kf5 {[%clk 0:00:05]} 99...
Rf7 {[%clk 0:00:06]} 100. Rc3+ {[%clk 0:00:05.9]} 100... Kb5 {[%clk 0:00:06.2]}
101. Ke5 {[%clk 0:00:06.8]} 101... Bc4 {[%clk 0:00:06.5]} 102. Rc1 {[%clk
0:00:06.9]} 102... Rd7 {[%clk 0:00:07]} 103. Ke4 {[%clk 0:00:07.1]} 103... Bd3+
{[%clk 0:00:06.4]} 104. Ke3 {[%clk 0:00:07.5]} 104... Bc4 {[%clk 0:00:07.3]}
105. Bd4 {[%clk 0:00:08.1]} 105... Re7+ {[%clk 0:00:07.4]} 106. Kf4 {[%clk
0:00:08.9]} 106... Re2 {[%clk 0:00:07.8]} 107. Rb1+ {[%clk 0:00:08.6]} 107...
Kc6 {[%clk 0:00:08.5]} 108. Kf3 {[%clk 0:00:09.1]} 108... Kd5 {[%clk 0:00:08.5]}
109. Be3 {[%clk 0:00:09.9]} 109... Rc2 {[%clk 0:00:08.8]} 110. Rd1+ {[%clk
0:00:10.3]} 110... Ke6 {[%clk 0:00:09.4]} 111. Rd4 {[%clk 0:00:10.9]} 111...
Bd5+ {[%clk 0:00:09.4]} 112. Kf4 {[%clk 0:00:11.2]} 112... Rc4 {[%clk
0:00:10.1]} 113. Rxc4 {[%clk 0:00:11.9]} 113... Bxc4 {[%clk 0:00:11]} 1/2-1/2

[Event "Late-Titled-Tuesday-Blitz-August-29-2023"]
[Site "Chess.com"]
[Date "2023.08.29"]
[Round "3"]
[White "Good_Knight_Kiss"]
[Black "ErikRonka"]
[Result "1-0"]
[WhiteElo "2359"]
[BlackElo "2482"]
[TimeControl "180+1"]
[EndTime "14:30:49 PDT"]
[Termination "Good_Knight_Kiss won by checkmate"]

1. e4 {[%clk 0:03:00.9]} 1... c5 {[%clk 0:02:59.3]} 2. Nf3 {[%clk 0:02:59.5]}
2... e6 {[%clk 0:02:59.2]} 3. d4 {[%clk 0:02:53.8]} 3... cxd4 {[%clk 0:03:00.1]}
4. Nxd4 {[%clk 0:02:52.7]} 4... Nf6 {[%clk 0:03:00.2]} 5. Nc3 {[%clk 0:02:52.6]}
5... Nc6 {[%clk 0:03:00.7]} 6. Ndb5 {[%clk 0:02:52]} 6... Bb4 {[%clk 0:02:58.7]}
7. a3 {[%clk 0:02:50.4]} 7... Bxc3+ {[%clk 0:02:58.4]} 8. Nxc3 {[%clk
0:02:51.3]} 8... d5 {[%clk 0:02:58.9]} 9. Bd3 {[%clk 0:02:51.6]} 9... dxe4
{[%clk 0:02:52.5]} 10. Nxe4 {[%clk 0:02:52.5]} 10... Nxe4 {[%clk 0:02:52.9]} 11.
Bxe4 {[%clk 0:02:52.8]} 11... Qxd1+ {[%clk 0:02:53.8]} 12. Kxd1 {[%clk
0:02:53.5]} 12... Bd7 {[%clk 0:02:51.9]} 13. Be3 {[%clk 0:02:47.7]} 13... e5
{[%clk 0:02:41.9]} 14. Kc1 {[%clk 0:02:26.6]} 14... f5 {[%clk 0:02:36.7]} 15.
Bd5 {[%clk 0:02:24.9]} 15... O-O-O {[%clk 0:02:29]} 16. b4 {[%clk 0:01:46.6]}
16... f4 {[%clk 0:02:14.6]} 17. Bc5 {[%clk 0:01:29.4]} 17... Kc7 {[%clk
0:01:56.7]} 18. f3 {[%clk 0:01:19.8]} 18... b6 {[%clk 0:01:36.9]} 19. Bf2 {[%clk
0:01:19.6]} 19... Ne7 {[%clk 0:01:23]} 20. Be4 {[%clk 0:01:12.3]} 20... Bc6
{[%clk 0:01:21.5]} 21. Re1 {[%clk 0:01:09]} 21... Ng6 {[%clk 0:00:55.3]} 22.
Bxc6 {[%clk 0:00:46.6]} 22... Kxc6 {[%clk 0:00:56.2]} 23. Re2 {[%clk 0:00:47]}
23... Rd7 {[%clk 0:00:51.2]} 24. Kb2 {[%clk 0:00:46.5]} 24... Rhd8 {[%clk
0:00:51.2]} 25. Rae1 {[%clk 0:00:38.4]} 25... a5 {[%clk 0:00:44.6]} 26. Kc3
{[%clk 0:00:29.2]} 26... axb4+ {[%clk 0:00:41.6]} 27. axb4 {[%clk 0:00:30.1]}
27... Kb5 {[%clk 0:00:32.5]} 28. Kb3 {[%clk 0:00:23.8]} 28... Kc6 {[%clk
0:00:17.5]} 29. Ra1 {[%clk 0:00:20.8]} 29... Rd2 {[%clk 0:00:16]} 30. Rae1
{[%clk 0:00:20.7]} 30... Rxe2 {[%clk 0:00:15.9]} 31. Rxe2 {[%clk 0:00:21.6]}
31... b5 {[%clk 0:00:16.3]} 32. Kc3 {[%clk 0:00:19.4]} 32... Rc8 {[%clk
0:00:15.4]} 33. Re1 {[%clk 0:00:13.3]} 33... Kd5+ {[%clk 0:00:13.3]} 34. Kd3
{[%clk 0:00:13.8]} 34... Rc4 {[%clk 0:00:13.9]} 35. c3 {[%clk 0:00:14]} 35...
Ne7 {[%clk 0:00:14]} 36. Ra1 {[%clk 0:00:08.7]} 36... Nc6 {[%clk 0:00:10.4]} 37.
Ra8 {[%clk 0:00:08.2]} 37... Ke6 {[%clk 0:00:07.8]} 38. Rg8 {[%clk 0:00:05.6]}
38... Kf7 {[%clk 0:00:07.2]} 39. Rh8 {[%clk 0:00:05.4]} 39... h6 {[%clk
0:00:06.9]} 40. Ra8 {[%clk 0:00:01.9]} 40... e4+ {[%clk 0:00:06.7]} 41. fxe4
{[%clk 0:00:01.9]} 41... Ne5+ {[%clk 0:00:07.6]} 42. Kc2 {[%clk 0:00:02]} 42...
g5 {[%clk 0:00:07.6]} 43. Bd4 {[%clk 0:00:02.3]} 43... Ng4 {[%clk 0:00:07.8]}
44. Ra7+ {[%clk 0:00:02.6]} 44... Ke6 {[%clk 0:00:07.8]} 45. Ra6+ {[%clk
0:00:03.1]} 45... Kf7 {[%clk 0:00:07.5]} 46. h3 {[%clk 0:00:03.6]} 46... Ne3+
{[%clk 0:00:05.3]} 47. Bxe3 {[%clk 0:00:03.8]} 47... fxe3 {[%clk 0:00:06.2]} 48.
Kd3 {[%clk 0:00:04.4]} 48... h5 {[%clk 0:00:05.6]} 49. Rd6 {[%clk 0:00:03.4]}
49... g4 {[%clk 0:00:05.7]} 50. hxg4 {[%clk 0:00:03.1]} 50... hxg4 {[%clk
0:00:06.6]} 51. Rd5 {[%clk 0:00:03.5]} 51... e2 {[%clk 0:00:05.7]} 52. Kxe2
{[%clk 0:00:03.6]} 52... Rxc3 {[%clk 0:00:06.3]} 53. Rxb5 {[%clk 0:00:03.6]}
53... Ke6 {[%clk 0:00:06.1]} 54. Kf2 {[%clk 0:00:02.3]} 54... g3+ {[%clk
0:00:04.6]} 55. Ke2 {[%clk 0:00:02.7]} 55... Rc2+ {[%clk 0:00:04.8]} 56. Kf3
{[%clk 0:00:02.7]} 56... Rc4 {[%clk 0:00:05.4]} 57. Kxg3 {[%clk 0:00:02.6]}
57... Rxe4 {[%clk 0:00:05.6]} 58. Kf3 {[%clk 0:00:03.4]} 58... Rc4 {[%clk
0:00:06]} 59. g4 {[%clk 0:00:03.7]} 59... Kf6 {[%clk 0:00:06.1]} 60. Kg3 {[%clk
0:00:04.1]} 60... Kg6 {[%clk 0:00:06.2]} 61. Kh4 {[%clk 0:00:04.6]} 61... Rd4
{[%clk 0:00:06.5]} 62. Rb6+ {[%clk 0:00:05.1]} 62... Kg7 {[%clk 0:00:06.8]} 63.
b5 {[%clk 0:00:05.7]} 63... Rb4 {[%clk 0:00:07]} 64. Kh5 {[%clk 0:00:06.1]}
64... Kh7 {[%clk 0:00:05.7]} 65. Rb7+ {[%clk 0:00:06.2]} 65... Kh8 {[%clk
0:00:05.7]} 66. b6 {[%clk 0:00:06.7]} 66... Rb1 {[%clk 0:00:02.2]} 67. g5 {[%clk
0:00:07]} 67... Kg8 {[%clk 0:00:02.1]} 68. Kg6 {[%clk 0:00:07.3]} 68... Kf8
{[%clk 0:00:02]} 69. Rb8+ {[%clk 0:00:07.6]} 69... Ke7 {[%clk 0:00:02.9]} 70.
Rb7+ {[%clk 0:00:07.1]} 70... Kf8 {[%clk 0:00:02.9]} 71. Kh6 {[%clk 0:00:06.7]}
71... Kg8 {[%clk 0:00:02.7]} 72. Rb8+ {[%clk 0:00:06.6]} 72... Kf7 {[%clk
0:00:02.7]} 73. g6+ {[%clk 0:00:07.1]} 73... Kf6 {[%clk 0:00:03.4]} 74. Rf8+
{[%clk 0:00:05.7]} 74... Ke7 {[%clk 0:00:04]} 75. Rf2 {[%clk 0:00:05.6]} 75...
Rxb6 {[%clk 0:00:03.4]} 76. Kh7 {[%clk 0:00:04.2]} 76... Rb1 {[%clk 0:00:03]}
77. g7 {[%clk 0:00:04.3]} 77... Rh1+ {[%clk 0:00:02.3]} 78. Kg8 {[%clk
0:00:04.7]} 78... Rg1 {[%clk 0:00:02.8]} 79. Rf4 {[%clk 0:00:04.9]} 79... Rh1
{[%clk 0:00:02]} 80. Rf5 {[%clk 0:00:04.1]} 80... Ke6 {[%clk 0:00:02.2]} 81. Rf4
{[%clk 0:00:04.2]} 81... Ke5 {[%clk 0:00:02]} 82. Rf8 {[%clk 0:00:03.7]} 82...
Ke6 {[%clk 0:00:02.9]} 83. Rf2 {[%clk 0:00:01.9]} 83... Ke7 {[%clk 0:00:03]} 84.
Re2+ {[%clk 0:00:02.4]} 84... Kf6 {[%clk 0:00:03.4]} 85. Rb2 {[%clk 0:00:02.4]}
85... Ke7 {[%clk 0:00:02.9]} 86. Rb7+ {[%clk 0:00:02.3]} 86... Kf6 {[%clk
0:00:03.3]} 87. Rb6+ {[%clk 0:00:02.3]} 87... Ke7 {[%clk 0:00:03.4]} 88. Rb3
{[%clk 0:00:02.4]} 88... Rh2 {[%clk 0:00:03.3]} 89. Re3+ {[%clk 0:00:02]} 89...
Kf6 {[%clk 0:00:03.6]} 90. Rf3+ {[%clk 0:00:02.5]} 90... Ke7 {[%clk 0:00:03.7]}
91. Rf1 {[%clk 0:00:02.8]} 91... Rh3 {[%clk 0:00:03.7]} 92. Rg1 {[%clk
0:00:02.4]} 92... Rb3 {[%clk 0:00:03.3]} 93. Re1+ {[%clk 0:00:02]} 93... Kf6
{[%clk 0:00:03.3]} 94. Kh8 {[%clk 0:00:01.9]} 94... Rh3+ {[%clk 0:00:02.9]} 95.
Kg8 {[%clk 0:00:02]} 95... Rb3 {[%clk 0:00:03.8]} 96. Rf1+ {[%clk 0:00:02.3]}
96... Ke7 {[%clk 0:00:03.7]} 97. Kh7 {[%clk 0:00:02]} 97... Rh3+ {[%clk
0:00:03.8]} 98. Kg8 {[%clk 0:00:02.4]} 98... Rc3 {[%clk 0:00:03.7]} 99. Re1+
{[%clk 0:00:02.7]} 99... Kf6 {[%clk 0:00:03.7]} 100. Rf1+ {[%clk 0:00:02.9]}
100... Ke7 {[%clk 0:00:04.1]} 101. Rh1 {[%clk 0:00:02.5]} 101... Kf6 {[%clk
0:00:02.5]} 102. Kh8 {[%clk 0:00:02.2]} 102... Rc8+ {[%clk 0:00:01.3]} 103. g8=Q
{[%clk 0:00:02.8]} 103... Rc7 {[%clk 0:00:01.1]} 104. Qh7 {[%clk 0:00:02.4]}
104... Ke6 {[%clk 0:00:02]} 105. Qg8+ {[%clk 0:00:02.5]} 105... Kd6 {[%clk
0:00:01.9]} 106. Rd1+ {[%clk 0:00:02.8]} 106... Kc6 {[%clk 0:00:02.3]} 107. Qg2+
{[%clk 0:00:02.6]} 107... Kb6 {[%clk 0:00:02.1]} 108. Qb2+ {[%clk 0:00:02.7]}
108... Ka7 {[%clk 0:00:01.7]} 109. Ra1# {[%clk 0:00:03]} 1-0

[Event "Late-Titled-Tuesday-Blitz-August-29-2023"]
[Site "Chess.com"]
[Date "2023.08.29"]
[Round "4"]
[White "ilushka"]
[Black "DawidCzerw"]
[Result "1-0"]
[WhiteElo "2373"]
[BlackElo "2473"]
[TimeControl "180+1"]
[EndTime "14:32:39 PDT"]
[Termination "ilushka won by resignation"]

1. e4 {[%clk 0:03:00.9]} 1... c5 {[%clk 0:03:00.1]} 2. Nf3 {[%clk 0:03:01.2]}
2... Nc6 {[%clk 0:03:00.5]} 3. Bb5 {[%clk 0:03:00.4]} 3... e6 {[%clk 0:03:00.7]}
4. O-O {[%clk 0:02:59.9]} 4... Nge7 {[%clk 0:03:00.4]} 5. c3 {[%clk 0:02:59.9]}
5... a6 {[%clk 0:02:59.7]} 6. Ba4 {[%clk 0:03:00]} 6... b5 {[%clk 0:02:58.6]} 7.
Bc2 {[%clk 0:02:59.4]} 7... Bb7 {[%clk 0:02:55.7]} 8. d4 {[%clk 0:02:55.7]} 8...
cxd4 {[%clk 0:02:56.2]} 9. cxd4 {[%clk 0:02:55.2]} 9... d5 {[%clk 0:02:57.1]}
10. Nc3 {[%clk 0:02:51.6]} 10... dxe4 {[%clk 0:02:53.2]} 11. Nxe4 {[%clk
0:02:51.2]} 11... Nf5 {[%clk 0:02:44.5]} 12. Nc5 {[%clk 0:02:50.8]} 12... Bxc5
{[%clk 0:02:33.8]} 13. dxc5 {[%clk 0:02:51.7]} 13... Qe7 {[%clk 0:02:33.7]} 14.
Bxf5 {[%clk 0:02:49]} 14... exf5 {[%clk 0:02:32.5]} 15. Re1 {[%clk 0:02:48]} 1-0

[Event "Late-Titled-Tuesday-Blitz-August-29-2023"]
[Site "Chess.com"]
[Date "2023.08.29"]
[Round "4"]
[White "SaqoChess_Twitch"]
[Black "matagordo"]
[Result "1-0"]
[WhiteElo "2631"]
[BlackElo "2196"]
[TimeControl "180+1"]
[EndTime "14:34:25 PDT"]
[Termination "SaqoChess_Twitch won by checkmate"]

1. d4 {[%clk 0:03:00.9]} 1... e6 {[%clk 0:03:00.2]} 2. c4 {[%clk 0:03:01.3]}
2... Nf6 {[%clk 0:02:59.6]} 3. Nc3 {[%clk 0:03:01.8]} 3... Bb4 {[%clk
0:02:58.9]} 4. a3 {[%clk 0:03:02.4]} 4... Bxc3+ {[%clk 0:02:58.2]} 5. bxc3
{[%clk 0:03:03.3]} 5... Qe7 {[%clk 0:02:58.7]} 6. e3 {[%clk 0:03:03.2]} 6... b6
{[%clk 0:02:58.9]} 7. Bd3 {[%clk 0:03:03.7]} 7... Bb7 {[%clk 0:02:59.6]} 8. f3
{[%clk 0:03:04]} 8... d5 {[%clk 0:02:58.5]} 9. cxd5 {[%clk 0:03:03.4]} 9... exd5
{[%clk 0:02:59.4]} 10. Ne2 {[%clk 0:03:03.8]} 10... O-O {[%clk 0:02:59.1]} 11.
O-O {[%clk 0:03:04.4]} 11... Nbd7 {[%clk 0:02:59.6]} 12. Ra2 {[%clk 0:03:00.7]}
12... Rfe8 {[%clk 0:02:59.3]} 13. g4 {[%clk 0:02:58.2]} 13... c5 {[%clk
0:02:46.9]} 14. Ng3 {[%clk 0:02:57.3]} 14... g6 {[%clk 0:02:43.9]} 15. Rg2
{[%clk 0:02:55.4]} 15... Rac8 {[%clk 0:02:38.6]} 16. g5 {[%clk 0:02:51.8]} 16...
Nh5 {[%clk 0:02:27.2]} 17. Nxh5 {[%clk 0:02:52]} 17... gxh5 {[%clk 0:02:28.1]}
18. f4 {[%clk 0:02:52.4]} 18... cxd4 {[%clk 0:02:19.4]} 19. Qxh5 {[%clk
0:02:51.3]} 19... Nf8 {[%clk 0:02:08.5]} 20. f5 {[%clk 0:02:49]} 20... Rxc3
{[%clk 0:01:57.5]} 21. g6 {[%clk 0:02:34.7]} 21... Rxc1 {[%clk 0:01:06.8]} 22.
gxf7+ {[%clk 0:02:30.2]} 22... Kh8 {[%clk 0:01:05.2]} 23. Rg8# {[%clk
0:02:31.1]} 1-0

[Event "Late-Titled-Tuesday-Blitz-August-29-2023"]
[Site "Chess.com"]
[Date "2023.08.29"]
[Round "4"]
[White "BlackBoarder"]
[Black "jefferyx"]
[Result "0-1"]
[WhiteElo "2738"]
[BlackElo "3024"]
[TimeControl "180+1"]
[EndTime "14:34:56 PDT"]
[Termination "jefferyx won by resignation"]

1. e4 {[%clk 0:03:00.9]} 1... e6 {[%clk 0:02:56.7]} 2. d4 {[%clk 0:03:00.5]}
2... d5 {[%clk 0:02:57.4]} 3. Bd3 {[%clk 0:03:01]} 3... dxe4 {[%clk 0:02:56.7]}
4. Bxe4 {[%clk 0:03:01.9]} 4... Nf6 {[%clk 0:02:56.9]} 5. Bf3 {[%clk 0:03:02.3]}
5... c5 {[%clk 0:02:56.4]} 6. Ne2 {[%clk 0:03:02.8]} 6... Nc6 {[%clk 0:02:56.3]}
7. Be3 {[%clk 0:03:03.1]} 7... Qc7 {[%clk 0:02:55.2]} 8. Nbc3 {[%clk 0:02:59.9]}
8... Be7 {[%clk 0:02:54.2]} 9. O-O {[%clk 0:02:56.6]} 9... O-O {[%clk
0:02:54.2]} 10. Bxc6 {[%clk 0:02:51.3]} 10... Qxc6 {[%clk 0:02:54.2]} 11. dxc5
{[%clk 0:02:49.9]} 11... Bxc5 {[%clk 0:02:54]} 12. Bxc5 {[%clk 0:02:48.5]} 12...
Qxc5 {[%clk 0:02:54.9]} 13. Qd4 {[%clk 0:02:48.6]} 13... Qxd4 {[%clk 0:02:54.6]}
14. Nxd4 {[%clk 0:02:47.9]} 14... Bd7 {[%clk 0:02:55.5]} 15. Rad1 {[%clk
0:02:41.9]} 15... Rfc8 {[%clk 0:02:55.5]} 16. f4 {[%clk 0:02:38.3]} 16... Rc7
{[%clk 0:02:49]} 17. Rd2 {[%clk 0:02:33.3]} 17... Rac8 {[%clk 0:02:47.4]} 18.
Rc1 {[%clk 0:02:17.9]} 18... a6 {[%clk 0:02:46.8]} 19. g3 {[%clk 0:02:14.3]}
19... Kf8 {[%clk 0:02:46.3]} 20. a3 {[%clk 0:02:11.1]} 20... Ke7 {[%clk
0:02:46.1]} 21. Nf3 {[%clk 0:01:56.3]} 21... Be8 {[%clk 0:02:40.4]} 22. Ne5
{[%clk 0:01:53.7]} 22... Nd7 {[%clk 0:02:39]} 23. Nxd7 {[%clk 0:01:49.7]} 23...
Bxd7 {[%clk 0:02:39.9]} 24. Ne4 {[%clk 0:01:48.5]} 24... Bc6 {[%clk 0:02:37.9]}
25. Nd6 {[%clk 0:01:31.7]} 25... Rd8 {[%clk 0:02:30.4]} 26. Rcd1 {[%clk
0:01:31.9]} 26... Bf3 {[%clk 0:02:11.7]} 27. Re1 {[%clk 0:01:07.3]} 27... Rxd6
{[%clk 0:02:10.7]} 0-1

[Event "Late-Titled-Tuesday-Blitz-August-29-2023"]
[Site "Chess.com"]
[Date "2023.08.29"]
[Round "4"]
[White "Akhayan"]
[Black "Kombinator01"]
[Result "1-0"]
[WhiteElo "2302"]
[BlackElo "2446"]
[TimeControl "180+1"]
[EndTime "14:35:13 PDT"]
[Termination "Akhayan won by resignation"]

1. e4 {[%clk 0:03:00.9]} 1... e5 {[%clk 0:02:58.9]} 2. Bc4 {[%clk 0:03:00.3]}
2... Nf6 {[%clk 0:02:58.4]} 3. d3 {[%clk 0:03:00.9]} 3... c6 {[%clk 0:02:58.6]}
4. Nf3 {[%clk 0:03:00.3]} 4... Be7 {[%clk 0:02:57.4]} 5. O-O {[%clk 0:02:58.6]}
5... d6 {[%clk 0:02:54.1]} 6. Nc3 {[%clk 0:02:42.4]} 6... a5 {[%clk 0:02:54.5]}
7. d4 {[%clk 0:02:41.3]} 7... Qc7 {[%clk 0:02:47.6]} 8. Re1 {[%clk 0:02:30.6]}
8... O-O {[%clk 0:02:45.9]} 9. h3 {[%clk 0:02:31.1]} 9... b5 {[%clk 0:02:43.1]}
10. Bf1 {[%clk 0:02:31]} 10... b4 {[%clk 0:02:42.9]} 11. Na4 {[%clk 0:02:28.5]}
11... Ba6 {[%clk 0:02:34.5]} 12. dxe5 {[%clk 0:02:27.6]} 12... dxe5 {[%clk
0:02:32.9]} 13. Be3 {[%clk 0:02:23.5]} 13... Bxf1 {[%clk 0:02:28.4]} 14. Rxf1
{[%clk 0:02:23.3]} 14... Nxe4 {[%clk 0:02:26.4]} 15. Qd3 {[%clk 0:02:19.3]}
15... Nd6 {[%clk 0:02:16.2]} 16. Nxe5 {[%clk 0:02:16]} 16... Bf6 {[%clk
0:02:11.9]} 17. Bb6 {[%clk 0:02:12]} 17... Qe7 {[%clk 0:02:05.1]} 18. Ng4 {[%clk
0:02:10.4]} 18... Ne8 {[%clk 0:01:25.7]} 19. Bc5 {[%clk 0:02:06.5]} 19... Qc7
{[%clk 0:01:13.6]} 20. Bxf8 {[%clk 0:01:57.2]} 20... Kxf8 {[%clk 0:01:14.5]} 21.
Rfe1 {[%clk 0:01:52.7]} 21... Nd7 {[%clk 0:01:14]} 22. Rad1 {[%clk 0:01:50.4]}
22... Rd8 {[%clk 0:01:14.4]} 23. Nxf6 {[%clk 0:01:47.5]} 23... gxf6 {[%clk
0:01:10.5]} 24. Qxh7 {[%clk 0:01:44.7]} 1-0